Cogmind - Beta 13 @@@ ROGUE MODE // 2024.04.24 @ 21:53:16 Player: JTMusky Result: Core destroyed Performance ------------- Evolutions (0) 0 Regions Visited (1) 200 Robots Destroyed (15) 75 Value Destroyed (217) 217 Prototype IDs (2) 40 Alien Tech Used (0) 0 Bonus (0) 0 TOTAL SCORE: 532 Bonus ------- None Cogmind --------- Core Integrity 0/250 Matter 300/300 Energy 100/100 System Corruption 0% Temperature Cool (0) Movement Core (100) Ox1 Location -10/Materials Parts ------- > --- POWER (1) -------- (None) > --- PROPULSION (2) --- (None) > --- UTILITY (2) ------ Small Storage Unit > --- WEAPON (2) ------- (None) > --- INVENTORY (8) ---- Ion Engine Wheel Compact Wheel Medium Laser Mining Laser Peak State ------------ > --- POWER ------------ Light Ion Engine > --- PROPULSION ------- Aluminum Leg Aluminum Leg > --- UTILITY ---------- Small Storage Unit Seismic Detector > --- WEAPON ----------- Medium Laser Medium Laser > --- INVENTORY -------- Ion Engine Light Treads Light Treads Wheel Compact Wheel Medium Laser Mining Laser [Rating: 7] Favorites ----------- Power Light Ion Engine Engine Light Ion Engine Propulsion Aluminum Leg Treads Light Treads Leg Aluminum Leg Wheel Wheel Utility Small Storage Unit Device Seismic Detector Storage Small Storage Unit Weapon Medium Laser Energy Gun Medium Laser Special Weapon Mining Laser Build | -11 -10 ------- Run | Yrd Mat Slots Evolved . | . . Power . | . . Propulsion . | . . Utility . | . . Weapon . | . . Parts Attached 17 | 9 8 Power 2 | 1 1 Engine 2 | 1 1 Core . | . . Reactor . | . . Propulsion 6 | 4 2 Treads 2 | . 2 Leg 2 | 2 . Wheel 2 | 2 . Hover . | . . Flight . | . . Utility 2 | 2 . Device 1 | 1 . Storage 1 | 1 . Processor . | . . Hackware . | . . Protection . | . . Artifact . | . . Weapon 7 | 2 5 Energy Gun 4 | 2 2 Energy Cannon . | . . Ballistic Gun . | . . Ballistic Cannon . | . . Launcher . | . . Special Weapon 3 | . 3 Impact Weapon . | . . Slashing Weapon . | . . Piercing Weapon . | . . Special Melee Weapon . | . . Unidentified Prototypes . | . . Parts Lost 7 | . 7 Power 2 | . 2 Propulsion 2 | . 2 Utility . | . . Weapon 3 | . 3 Highest Loss Streak 5 | . 5 To Critical Strikes . | . . Average Slot Usage (%) 91 | . 91 Engine 11 | . 11 Treads 8 | . 8 Leg 19 | . 19 Device 9 | . 9 Storage 14 | . 14 Energy Gun 20 | . 20 Special Weapon 6 | . 6 Naked Turns . | . . Heaviest Build 15 | 13 15 Greatest Support 40 | 20 40 Greatest Overweight (x) 4 | 2 4 Average Overweight (x) . | . . Largest Inventory Capacity 8 | 8 8 Average Capacity 7 | 7 8 Most Carried 8 | 8 8 Average Carried 6 | 5 6 Final Capacity 8 | 8 8 Final Carried 7 | 7 5 Class Distribution -------------------- 100% | Mutant Dominant Class ---------------- Mutant | -10/Materials Resources | -11 -10 ----------- Run | Yrd Mat Matter Collected 360 | 290 70 Remotely . | . . Salvage Created 436 | 178 258 Parts 20 | 10 10 Haulers Intercepted 1 | . 1 Recyclers Shooed 1 | 1 . Parts Field Recycled . | . . Retrieved Matter . | . . Parts Self-Destructed . | . . Prevented . | . . Kills | -11 -10 ------- Run | Yrd Mat Combat Hostiles Destroyed 7 | . 7 Guns 6 | . 6 Classes Destroyed 6 | 3 3 Worker 2 | 2 . Tunneler 4 | 3 1 Hauler 1 | . 1 Recycler 1 | 1 . Swarmer 3 | . 3 Grunt 4 | . 4 Best Kill Streak 3 | 3 3 Combat Bots Only 3 | . 3 Max Kills in Single Turn 1 | 1 1 Gunslinging . | . . Exploded . | . . Melee . | . . Uniques/NPCs Destroyed . | . . Combat | -11 -10 -------- Run | Yrd Mat Hostile Shots Fired 126 | . 126 Missed 32 | . 32 Damage Taken 1051 | . 1051 Core 250 | . 250 Absorbed by Shields . | . . Core Remaining (%) 100 | 100 . Volleys Fired 50 | 17 33 Largest 2 | 2 2 Hottest 100 | 100 100 Shots Fired 93 | 34 59 Gun 87 | 34 53 Cannon . | . . Launcher . | . . Special 6 | . 6 Kinetic . | . . Thermal 93 | 34 59 Explosive . | . . Electromagnetic . | . . Robot Hit Streak 8 | 6 8 Robot Miss Streak 4 | 3 4 Penetration Max . | . . Secondary Targets 3 | . 3 Max Gunslinging Chain 1 | . 1 Shots Hit Robots 48 | 18 30 Core Hits 20 | 7 13 Critical Kills . | . . Critical Parts Destroyed . | . . Critical Strikes 6 | 1 5 Burn 6 | 1 5 Melee Attacks . | . . Impact . | . . Slashing . | . . Piercing . | . . Sneak Attacks . | . . Combat Hostiles . | . . Follow-up Attacks . | . . Damage Inflicted 646 | 224 422 Guns 623 | 224 399 Cannons . | . . Explosions . | . . Melee . | . . Ramming 23 | . 23 Kinetic . | . . Thermal 623 | 224 399 Explosive . | . . Electromagnetic . | . . Impact . | . . Slashing . | . . Piercing . | . . Highest Corruption . | . . Average Corruption . | . . Corruption Purged . | . . Corruption Blocked . | . . Overload Shots . | . . Overflow Damage . | . . Projectiles . | . . Explosions . | . . Melee . | . . Knockbacks . | . . Impact . | . . Kinetic . | . . Secondary . | . . Self-Inflicted Damage 2 | . 2 Shots . | . . Rammed 7 | . 7 Targets Rammed 8 | . 8 Kicked . | . . Crushed 1 | . 1 Highest Temperature 572 | 156 572 Average Temperature 125 | 60 160 Received Heat Transfer 558 | . 558 Effects 12 | . 12 Energy Bleed 1 | . 1 Interference 2 | . 2 Short Circuit 3 | . 3 Damage (minor) 1 | . 1 Damage (major) 5 | . 5 Siege Activations . | . . Robots Corrupted . | . . Combat Hostiles . | . . Parts Fried . | . . Impact Corruptions . | . . Robots Melted 1 | . 1 Combat Hostiles 1 | . 1 Parts Melted 7 | . 7 Heat Transferred 2294 | 740 1554 Parts Sabotaged . | . . Parts Stolen . | . . Parts Stripped . | . . Power Chain Reactions . | . . Alert | -11 -10 ------- Run | Yrd Mat Peak Influence 115 | 30 115 Initial 19 | . 19 Average 39 | 10 48 Maximum Alert Level . | . . Low Security (%) 100 | 100 100 Level 1 . | . . Level 2 . | . . Level 3 . | . . Level 4 . | . . Level 5 . | . . High Security . | . . Max Security . | . . Squads Dispatched 4 | . 4 Investigation 2 | . 2 Extermination . | . . Reinforcement 2 | . 2 Assault . | . . Garrison . | . . Intercept . | . . Searches Triggered . | . . Construction Impeded . | . . Haulers Reinforced . | . . Active Scanning Responses . | . . Cargo Convoy Interrupts . | . . Stealth | -11 -10 --------- Run | Yrd Mat Distress Signals 3 | . 3 Communications Jammed . | . . Distress Signals . | . . Times Spotted 18 | . 18 Peak Tracking Total 6 | . 6 Tactical Retreats 1 | . 1 Traps | -11 -10 ------- Run | Yrd Mat Traps Triggered 2 | . 2 Indirectly . | . . Trap Hack Attempts . | . . Triggered . | . . Disarmed . | . . Reprogrammed . | . . Reused . | . . Traps Extracted . | . . Installed . | . . Triggered . | . . Machines | -11 -10 ---------- Run | Yrd Mat Machines Disabled . | . . Max in Single Turn . | . . Machines Repaired . | . . Machines Dismantled . | . . Machines Sabotaged . | . . Overloaded Fab Kills . | . . Hacking | -11 -10 --------- Run | Yrd Mat Machines Accessed 1 | . 1 Terminals 1 | . 1 Fabricators . | . . Repair Stations . | . . Recycling Units . | . . Scanalyzers . | . . Garrison Access . | . . Total Hacks 2 | . 2 Successful 1 | . 1 Failed 1 | . 1 Catastrophic . | . . Database Lockouts . | . . Manual . | . . Terminals 2 | . 2 Fabricators . | . . Repair Stations . | . . Recycling Units . | . . Scanalyzers . | . . Garrison Access . | . . Terminal Hacks 1 | . 1 Prototype ID Bank 1 | . 1 Fabricator Hacks . | . . Repair Station Hacks . | . . Recycling Unit Hacks . | . . Scanalyzer . | . . Garrison Access Hacks . | . . Unauthorized Hacks . | . . Terminals . | . . Fabricators . | . . Repair Stations . | . . Recycling Units . | . . Scanalyzers . | . . Garrison Access . | . . Data Cores Recovered . | . . Used . | . . Hacking Detections 1 | . 1 Full Trace Events . | . . Feedback Events . | . . Feedback Blocked . | . . Robot Schematics Acquired . | . . Robots Built . | . . Authchips . | . . Time . | . . Total Robot Build Rating . | . . Part Schematics Acquired . | . . Parts Built . | . . Authchips . | . . Time . | . . Total Part Build Rating . | . . Parts Repaired . | . . Time . | . . Parts Recycled . | . . Recycled Matter . | . . Retrieved Matter . | . . Retrieved Components . | . . Parts Scanalyzed . | . . Part Schematics Acquired . | . . Parts Damaged . | . . Bothacking | -11 -10 ------------ Run | Yrd Mat Used RIF Installer . | . . Robots Hacked . | . . Non-combat . | . . Combat . | . . Robot Hacks Applied . | . . Relay Couplers Released . | . . Fabnet Peak Effective % . | . . Robots Rewired . | . . Allies Hacked . | . . Hacks Repelled . | . . Allies | -11 -10 -------- Run | Yrd Mat Total Allies . | . . Largest Group . | . . Highest-Rated Group . | . . Highest-Rated Ally . | . . Total Orders . | . . Ally Attacks . | . . Total Damage . | . . Kills . | . . Allies Corrupted . | . . Allies Melted . | . . Intel | -11 -10 ------- Run | Yrd Mat Robot Analysis Total . | . . Derelict Logs Recovered . | . . Drone Launches . | . . Drone Recoveries . | . . Exploration | -11 -10 ------------- Run | Yrd Mat Turns Passed 854 | 210 644 Spaces Moved 400 | 107 293 Core 34 | 27 7 Treads 99 | . 99 Legs 267 | 80 187 Wheels . | . . Hover . | . . Flight . | . . Fastest Speed 50 | 50 100 Average Speed 131 | 121 134 Slowest Speed 250 | 150 250 Overloaded Moves . | . . Propulsion Burnouts . | . . Robots Hopped . | . . Cave-ins Triggered . | . . Exploration Rate (%) 26 | 5 47 Regions Visited 1 Branch Regions . Pre-discovered Areas . | . . Known Exits Taken . | . . Unknown Exits Taken 1 | 1 . Scrap Searched . | . . Spaces Dug 6 | . 6 Terrain Destroyed 6 | . 6 Melee . | . . Projectile 6 | . 6 AOE . | . . Terrain Rammed . | . . Walls Destroyed . | . . Machines Disabled . | . . Actions | -11 -10 --------- Run | Yrd Mat Total 614 | 149 465 Wait 125 | 7 118 Move 399 | 106 293 Hop . | . . Pick Up 11 | 10 1 Fast Attach 6 | 4 2 Attach 4 | 3 1 Detach 1 | . 1 Swap 7 | 2 5 Drop 4 | . 4 Fire 50 | 17 33 Melee . | . . Ram . | . . Kick . | . . Crush 7 | . 7 Escape Stasis . | . . Rewire . | . . Trap . | . . Miscellaneous . | . . Route ------- -11/Scrapyard -10/Materials (discovered 3 exits: [*Mat x2] / [*Min]) History --------- Turn | Location | Event 19 | -11/Scrapyard | Discovered new exit (range 16) 211 | -11/Scrapyard | Entered Materials 308 | -10/Materials | Build established: Mutant 356 | -10/Materials | Discovered new exit (range 11) 548 | -10/Materials | Discovered new exit (range 10) 604 | -10/Materials | Core integrity fell below 50% 847 | -10/Materials | Discovered new exit (range 5) 854 | -10/Materials | Core integrity fell below 20% 855 | -10/Materials | Core destroyed Last Messages --------------- 00835_ Slammed into U-05 Engineer. 00843_ G-34 Mercenary destroyed. 00843_ Triggered Alarm Trap. 00843_ An alarm sounds. 00843_ ALERT: Alarm triggered, dispatching investigation squad. 00845_ U-05 Engineer lays Concrete. 00846_ K-01 Serf collects debris. 00847_ EXIT=FOUND 00847_ R-06 Scavenger collects Aluminum Leg. 00848_ U-05 Engineer lays Concrete. 00848_ Slammed into G-34 Mercenary. 00849_ U-05 Engineer lays Concrete. 00850_ R-06 Scavenger collects Ion Engine. 00851_ K-01 Serf collects debris. 00851_ U-05 Engineer lays Concrete. 00852_ Lgt. Treads destroyed. 00854_ K-01 Serf destroyed. 00854_ R-06 Scavenger collects Lgt. Ion Engine. 00855_ Slammed into G-34 Mercenary. Map ----- +----------------------------------------------------+ | ???# #????????????# ! //^ ?????? | | ???# #????????????# != "??????? | | ???# #????????????# #####+######## #??????? | | ???# /????????????# #?? #????# #??????? | | ???# ######???????# # #????# #??????? | | ???# # #???????+ / #????# #??????? | | #### #???????# # #????# #??????? | | #???????# #?? #????# #??????? | | # #???????# #???########## #??????? | | ## ##???######+###### # #??????? | | ###+##### #????# # # ######## | | ?# # #????# """""""%# # ## ? | | ?# # #????# """"""" + # # ??? | | ?# """ # #????# """"""" # # ## ##### | | ?# """ + #????# """"""" # %+% # | | ?# """ # #????# """"""" # # # | | ?# # #????# ??? # # "" + | | ?######## #????##???######## # T" # | | ????????# #????????????????########## "" # | | ???????? ?????????????????????????# # | | ???????? ????????????????????????# | | ????????# ##????????????????????????# """ | | ????????# #?####??????############??# """ | | ????????? #?# ????# g #??#% """ | | ????????? #?# ??# g u g g####% | | ????????? ?+ # @ % g %r! % u | | ?????????# #?# ![! + ######################+ | | ?????????? ??# ![! # #?????????????????????? | | ?????????? ??# ![ ??# < #?????????????????????? | | ?????????? ??# ????# #?????????????????????? | | ?????????????# ??????#####?????????????????????? | | ?????????????##??????????????????????????????????? | | ?????????????????????????????????????????????????? | | ?????????????????????????????????????????????????? | | ?????????????????????????????????????????????????? | | ?????????????????????????????????????????????????? | | ?????????????????????????????????????????????????? | | ?????????????????????????????????????????????????? | | ?????????????????????????????????????????????????? | | ?????????????????????????????????????????????????? | | ?????????????????????????????????????????????????? | | ?????????????????????????????????????????????????? | | | | | | | | | | | | | | | | | +----------------------------------------------------+ Best States ------------- Heat Dissipation 25 Energy Generation 10 Energy Capacity 250 Matter Stores 300 Matter Capacity 300 Sight Range 16 Terrain Scan Density 10 Evasion (%) 55 Recoil Reduction 2 Item Schematics ----------------- None Robot Schematics ------------------ None Fabricated ------------ Nothing Alien Tech Used ----------------- None Achievements -------------- None Challenges ------------ None Game ------ Seed ShadeCarbideCharge Manual? 0 Play Time 00:13:56 Cumulative 23.0 hours Start 2024.04.24 @ 21:41:09 End 2024.04.24 @ 21:53:16 Sessions 1 Manual Loads 0 Difficulty Rogue Special Mode None Game No. 28 Rogue 28 Adventurer 0 Explorer 0 Win Type - Total 0 Types 0/0/0/0/0/0/0/0/0 Lore% 18 Gallery% 14 Achievement% 16 Wizard Run 0 Options --------- Layout 2 ASCII 1 Keyboard 1 Movement Vi Keybinds 0 Fullscreen 2 Font 40/SmallcapsGlow Map View 50x44 Zoom Use 0% Tactical HUD 1 Map Filters NONE Filters NONE Steam 0 RUN: 7d9bd707-c1bd-444c-99dc-5a5ecff3d667